{"text_format":"3","workbook":"xlsx","n_sheets":4,"sheets":["Year 1 ","Year 2","Year 3","Total Bidding Price"],"not_rendered":{"images":1,"defined_names":3},"read":"whole","date_system":"1900"}

{"sheet":"Year 1 ","index":0,"n_rows":40,"n_cols":13,"rows_kept":40,"merged":[[0,1,0,10],[1,1,1,7],[3,1,3,10],[4,1,4,3],[5,1,5,3],[6,1,6,3],[7,1,7,3],[8,1,8,3],[9,1,9,3],[10,0,10,2],[11,0,11,3],[12,0,12,3],[13,0,13,3],[14,0,14,3],[15,0,15,3],[17,0,17,3],[18,0,18,4],[19,0,19,12],[20,0,20,4],[21,0,21,4],[22,0,22,4],[25,0,25,12],[26,0,26,10],[32,0,32,10],[33,1,34,12],[35,1,36,12],[37,1,38,12],[39,1,40,12]]}
[null,"Pricing schedule Year One (01) "]
[null,"ANNEXURE A - APPOINTMENT OF A PANEL OF SERVICE PROVIDERS LOCATED IN SOUTH AFRICA TO PROVIDE QUALITY ASSURANCE AND VERIFICATION SERVICES OF PERFORMANCE INFORMATION FOR SELECTED DISCRETIONARY GRANT FUNDED PROJECTS "]
[null,"Bid No: BS/2026/RFB557"]
[null,"Price evaluation will be conducted for 2,000 learners "]
["Task ","Additional Information",null,null,"Quantity","Per Unit Price (for scale 500 - 999 number of learners) excuding vat","Price calculated for 999 learners (excuding vat)","Per Unit Price (for scale 1,000 - 1,499 number of learners)","Price calculated for 1,499 learners  (excuding vat)","Unit Price ( for scale 1,500 - 2,000 number of learners)  (excuding vat)","Price calculated for 2,000 learners  (excuding vat)","Per Unit Price( for scale 2,001 and above - number of learners)  (excuding vat)","Price calculated for 2,001 learners  (excuding vat)"]
["Project Team","Project Executive/Project Manager, Administrator, 3 additional members",null,null,1,null,{"$f":"F6*1","v":0},null,{"$f":"H6*1","v":0},null,{"$f":"J6*1","v":0},null,{"$f":"L6*1","v":0}]
["Planning ","This includes project plan/monitoring plan with dates per Employer per contract as per the Scope of Work in the Terms of Reference",null,null,1,null,{"$f":"F7*1","v":0},null,{"$f":"H7*1","v":0},null,{"$f":"J7*1","v":0},null,{"$f":"L7*1","v":0}]
["Implementation","This includes the roll-out of the projects Beneficiaries  limited to Scope of Work in the Terms of Reference",null,null,"Costed per learner on a sliding scale",null,{"$f":"F8*999","v":0},null,{"$f":"H8*1499","v":0},null,{"$f":"J8*2000","v":0},null,{"$f":"L8*2001","v":0}]
["Quality assurance and verification on perfomance information for seltected projects","It include receiving  learner evidence/ perfomance information, quality assurance and verification",null,null,1,null,{"$f":"F9*1","v":0},null,{"$f":"H9*1","v":0},null,{"$f":"J9*1","v":0},null,{"$f":"L9*1","v":0}]
["Close Out","Closing out of projects as per BANKSETA requirements.",null,null,1,null,{"$f":"F10*1","v":0},null,{"$f":"H10*1","v":0},null,{"$f":"J10*1","v":0},null,{"$f":"L10*1","v":0}]
["SUB-TOTAL (VAT exclusive)",{"$nulls":4},{"$f":"SUM(F6:F10)","v":{"v":0,"d":"R 0.00"}},{"v":0,"d":"R 0.00"},{"v":0,"d":"R 0.00"},{"v":0,"d":"R 0.00"},{"v":0,"d":"R 0.00"},{"v":0,"d":"R 0.00"},{"v":0,"d":"R 0.00"},{"v":0,"d":"R 0.00"}]
["Other Items not included in above - BIDDER TO SPECIFY",{"$nulls":3},"Quantity",{"$f":"+F5","v":"Per Unit Price (for scale 500 - 999 number of learners) excuding vat"},"Price calculated for 999 learners (excuding vat)","Per Unit Price (for scale 1,000 - 1,499 number of learners)","Price calculated for 1,499 learners  (excuding vat)","Unit Price ( for scale 1,500 - 2,000 number of learners)  (excuding vat)","Price calculated for 2,000 learners  (excuding vat)","Per Unit Price( for scale 2,001 and above - number of learners)  (excuding vat)","Price calculated for 2,001 learners  (excuding vat)"]
[1]
[2]
[3]
[4]
[5]
[6]
["Sub Total (VAT Exclusive) for other items",{"$nulls":4},{"$f":"SUM(F13:F18)","v":{"v":0,"d":"R 0.00"}},{"$f":"SUM(G13:G18)","v":{"v":0,"d":"R 0.00"}},{"v":0,"d":"R 0.00"},{"v":0,"d":"R 0.00"},{"v":0,"d":"R 0.00"},{"v":0,"d":"R 0.00"},{"v":0,"d":"R 0.00"},{"v":0,"d":"R 0.00"}]
[]
["Total VAT excl",{"$nulls":4},{"$f":"F11+F19","v":{"v":0,"d":"R 0.00"}},{"$f":"G11+G19","v":{"v":0,"d":"R 0.00"}},{"v":0,"d":"R 0.00"},{"v":0,"d":"R 0.00"},{"v":0,"d":"R 0.00"},{"v":0,"d":"R 0.00"},{"v":0,"d":"R 0.00"},{"v":0,"d":"R 0.00"}]
["VAT (if VAT registered)",{"$nulls":4},{"$f":"SUM(F21*0.15)","v":{"v":0,"d":"R0.00"}},{"$f":"SUM(G21*0.15)","v":{"v":0,"d":"R0.00"}},{"v":0,"d":"R0.00"},{"v":0,"d":"R0.00"},{"v":0,"d":"R0.00"},{"v":0,"d":"R0.00"},{"v":0,"d":"R0.00"},{"v":0,"d":"R0.00"}]
["TOTAL BIDDING PRICE INCL VAT",{"$nulls":4},{"$f":"F21+F22","v":{"v":0,"d":"R0.00"}},{"$f":"G21+G22","v":{"v":0,"d":"R0.00"}},{"v":0,"d":"R0.00"},{"v":0,"d":"R0.00"},{"v":0,"d":"R0.00"},{"v":0,"d":"R0.00"},{"v":0,"d":"R0.00"},{"v":0,"d":"R0.00"}]
[]
[]
["Notes:"]
["Price Evaluation will be conducted using 2,000 learners "]
["Pricing must cover all items detailed in the Terms of Reference"]
["The pricing sheet should show VAT separately"]
["Pricing must include Value Added Tax (VAT) at the end if the bidder is registered for VAT."]
["Service provider should complete blocks in yellow. Total values in this spreadsheet are automatically calculated and filled in."]
["Service Provider to check that the totals include all items quoted and to check the overall bid price for completeness and accuracy."]
["BIDDER - Only complete cells marked in yellow"]
["Company Name:"]
[]
["Representative Name:"]
[]
["Date"]
[]
["Signature"]

{"sheet":"Year 2","index":1,"n_rows":40,"n_cols":13,"rows_kept":40,"merged":[[0,1,0,10],[1,1,1,7],[3,1,3,10],[4,1,4,3],[5,1,5,3],[6,1,6,3],[7,1,7,3],[8,1,8,3],[9,1,9,3],[10,0,10,2],[11,0,11,3],[12,0,12,3],[13,0,13,3],[14,0,14,3],[15,0,15,3],[17,0,17,3],[18,0,18,4],[19,0,19,12],[20,0,20,4],[21,0,21,4],[22,0,22,4],[25,0,25,12],[26,0,26,10],[32,0,32,10],[33,1,34,12],[35,1,36,12],[37,1,38,12],[39,1,40,12]]}
[null,"Pricing schedule Year two(02) "]
[null,"ANNEXURE A - APPOINTMENT OF A PANEL OF SERVICE PROVIDERS LOCATED IN SOUTH AFRICA TO PROVIDE QUALITY ASSURANCE AND VERIFICATION SERVICES OF PERFORMANCE INFORMATION FOR SELECTED DISCRETIONARY GRANT FUNDED PROJECTS "]
[null,"Bid No: BS/2026/RFB557"]
[null,"Price evaluation will be conducted for 2,000 learners "]
["Task ","Additional Information",null,null,"Quantity","Per Unit Price (for scale 500 - 999 number of learners) excuding vat","Price calculated for 999 learners (excuding vat)","Per Unit Price (for scale 1,000 - 1,499 number of learners)","Price calculated for 1,499 learners  (excuding vat)","Unit Price ( for scale 1,500 - 2,000 number of learners)  (excuding vat)","Price calculated for 2,000 learners  (excuding vat)","Per Unit Price( for scale 2,001 and above - number of learners)  (excuding vat)","Price calculated for 2,001 learners  (excuding vat)"]
["Project Team","Project Executive/Project Manager, Administrator, 3 additional members",null,null,1,null,{"$f":"F6*1","v":0},null,{"$f":"H6*1","v":0},null,{"$f":"J6*1","v":0},null,{"$f":"L6*1","v":0}]
["Planning ","This includes project plan/monitoring plan with dates per Employer per contract as per the Scope of Work in the Terms of Reference",null,null,1,null,{"$f":"F7*1","v":0},null,{"$f":"H7*1","v":0},null,{"$f":"J7*1","v":0},null,{"$f":"L7*1","v":0}]
["Implementation","This includes the roll-out of the projects Beneficiaries  limited to Scope of Work in the Terms of Reference",null,null,"Costed per learner on a sliding scale",null,{"$f":"F8*999","v":0},null,{"$f":"H8*1499","v":0},null,{"$f":"J8*2000","v":0},null,{"$f":"L8*2001","v":0}]
["Quality assurance and verification on perfomance information for seltected projects","It include receiving  learner evidence/ perfomance information, quality assurance and verification",null,null,1,null,{"$f":"F9*1","v":0},null,{"$f":"H9*1","v":0},null,{"$f":"J9*1","v":0},null,{"$f":"L9*1","v":0}]
["Close Out","Closing out of projects as per BANKSETA requirements.",null,null,1,null,{"$f":"F10*1","v":0},null,{"$f":"H10*1","v":0},null,{"$f":"J10*1","v":0},null,{"$f":"L10*1","v":0}]
["SUB-TOTAL (VAT exclusive)",{"$nulls":4},{"$f":"SUM(F6:F10)","v":{"v":0,"d":"R 0.00"}},{"v":0,"d":"R 0.00"},{"v":0,"d":"R 0.00"},{"v":0,"d":"R 0.00"},{"v":0,"d":"R 0.00"},{"v":0,"d":"R 0.00"},{"v":0,"d":"R 0.00"},{"v":0,"d":"R 0.00"}]
["Other Items not included in above - BIDDER TO SPECIFY",{"$nulls":3},"Quantity",{"$f":"+F5","v":"Per Unit Price (for scale 500 - 999 number of learners) excuding vat"},"Price calculated for 999 learners (excuding vat)","Per Unit Price (for scale 1,000 - 1,499 number of learners)","Price calculated for 1,499 learners  (excuding vat)","Unit Price ( for scale 1,500 - 2,000 number of learners)  (excuding vat)","Price calculated for 2,000 learners  (excuding vat)","Per Unit Price( for scale 2,001 and above - number of learners)  (excuding vat)","Price calculated for 2,001 learners  (excuding vat)"]
[1]
[2]
[3]
[4]
[5]
[6]
["Sub Total (VAT Exclusive) for other items",{"$nulls":4},{"$f":"SUM(F13:F18)","v":{"v":0,"d":"R 0.00"}},{"$f":"SUM(G13:G18)","v":{"v":0,"d":"R 0.00"}},{"v":0,"d":"R 0.00"},{"v":0,"d":"R 0.00"},{"v":0,"d":"R 0.00"},{"v":0,"d":"R 0.00"},{"v":0,"d":"R 0.00"},{"v":0,"d":"R 0.00"}]
[]
["Total VAT excl",{"$nulls":4},{"$f":"F11+F19","v":{"v":0,"d":"R 0.00"}},{"$f":"G11+G19","v":{"v":0,"d":"R 0.00"}},{"v":0,"d":"R 0.00"},{"v":0,"d":"R 0.00"},{"v":0,"d":"R 0.00"},{"v":0,"d":"R 0.00"},{"v":0,"d":"R 0.00"},{"v":0,"d":"R 0.00"}]
["VAT (if VAT registered)",{"$nulls":4},{"$f":"SUM(F21*0.15)","v":{"v":0,"d":"R0.00"}},{"$f":"SUM(G21*0.15)","v":{"v":0,"d":"R0.00"}},{"v":0,"d":"R0.00"},{"v":0,"d":"R0.00"},{"v":0,"d":"R0.00"},{"v":0,"d":"R0.00"},{"v":0,"d":"R0.00"},{"v":0,"d":"R0.00"}]
["TOTAL BIDDING PRICE INCL VAT",{"$nulls":4},{"$f":"F21+F22","v":{"v":0,"d":"R0.00"}},{"$f":"G21+G22","v":{"v":0,"d":"R0.00"}},{"v":0,"d":"R0.00"},{"v":0,"d":"R0.00"},{"v":0,"d":"R0.00"},{"v":0,"d":"R0.00"},{"v":0,"d":"R0.00"},{"v":0,"d":"R0.00"}]
[]
[]
["Notes:"]
["Price Evaluation will be conducted using 2,000 learners "]
["Pricing must cover all items detailed in the Terms of Reference"]
["The pricing sheet should show VAT separately"]
["Pricing must include Value Added Tax (VAT) at the end if the bidder is registered for VAT."]
["Service provider should complete blocks in yellow. Total values in this spreadsheet are automatically calculated and filled in."]
["Service Provider to check that the totals include all items quoted and to check the overall bid price for completeness and accuracy."]
["BIDDER - Only complete cells marked in yellow"]
["Company Name:"]
[]
["Representative Name:"]
[]
["Date"]
[]
["Signature"]

{"sheet":"Year 3","index":2,"n_rows":40,"n_cols":13,"rows_kept":40,"merged":[[0,1,0,10],[1,1,1,7],[3,1,3,10],[4,1,4,3],[5,1,5,3],[6,1,6,3],[7,1,7,3],[8,1,8,3],[9,1,9,3],[10,0,10,2],[11,0,11,3],[12,0,12,3],[13,0,13,3],[14,0,14,3],[15,0,15,3],[17,0,17,3],[18,0,18,4],[19,0,19,12],[20,0,20,4],[21,0,21,4],[22,0,22,4],[25,0,25,12],[26,0,26,10],[32,0,32,10],[33,1,34,12],[35,1,36,12],[37,1,38,12],[39,1,40,12]]}
[null,"Pricing schedule Year three (03) "]
[null,"ANNEXURE A - APPOINTMENT OF A PANEL OF SERVICE PROVIDERS LOCATED IN SOUTH AFRICA TO PROVIDE QUALITY ASSURANCE AND VERIFICATION SERVICES OF PERFORMANCE INFORMATION FOR SELECTED DISCRETIONARY GRANT FUNDED PROJECTS "]
[null,"Bid No: BS/2026/RFB557"]
[null,"Price evaluation will be conducted for 2,000 learners "]
["Task ","Additional Information",null,null,"Quantity","Per Unit Price (for scale 500 - 999 number of learners) excuding vat","Price calculated for 999 learners (excuding vat)","Per Unit Price (for scale 1,000 - 1,499 number of learners)","Price calculated for 1,499 learners  (excuding vat)","Unit Price ( for scale 1,500 - 2,000 number of learners)  (excuding vat)","Price calculated for 2,000 learners  (excuding vat)","Per Unit Price( for scale 2,001 and above - number of learners)  (excuding vat)","Price calculated for 2,001 learners  (excuding vat)"]
["Project Team","Project Executive/Project Manager, Administrator, 3 additional members",null,null,1,null,{"$f":"F6*1","v":0},null,{"$f":"H6*1","v":0},null,{"$f":"J6*1","v":0},null,{"$f":"L6*1","v":0}]
["Planning ","This includes project plan/monitoring plan with dates per Employer per contract as per the Scope of Work in the Terms of Reference",null,null,1,null,{"$f":"F7*1","v":0},null,{"$f":"H7*1","v":0},null,{"$f":"J7*1","v":0},null,{"$f":"L7*1","v":0}]
["Implementation","This includes the roll-out of the projects Beneficiaries  limited to Scope of Work in the Terms of Reference",null,null,"Costed per learner on a sliding scale",null,{"$f":"F8*999","v":0},null,{"$f":"H8*1499","v":0},null,{"$f":"J8*2000","v":0},null,{"$f":"L8*2001","v":0}]
["Quality assurance and verification on perfomance information for seltected projects","It include receiving  learner evidence/ perfomance information, quality assurance and verification",null,null,1,null,{"$f":"F9*1","v":0},null,{"$f":"H9*1","v":0},null,{"$f":"J9*1","v":0},null,{"$f":"L9*1","v":0}]
["Close Out","Closing out of projects as per BANKSETA requirements.",null,null,1,null,{"$f":"F10*1","v":0},null,{"$f":"H10*1","v":0},null,{"$f":"J10*1","v":0},null,{"$f":"L10*1","v":0}]
["SUB-TOTAL (VAT exclusive)",{"$nulls":4},{"$f":"SUM(F6:F10)","v":{"v":0,"d":"R 0.00"}},{"v":0,"d":"R 0.00"},{"v":0,"d":"R 0.00"},{"v":0,"d":"R 0.00"},{"v":0,"d":"R 0.00"},{"v":0,"d":"R 0.00"},{"v":0,"d":"R 0.00"},{"v":0,"d":"R 0.00"}]
["Other Items not included in above - BIDDER TO SPECIFY",{"$nulls":3},"Quantity",{"$f":"+F5","v":"Per Unit Price (for scale 500 - 999 number of learners) excuding vat"},"Price calculated for 999 learners (excuding vat)","Per Unit Price (for scale 1,000 - 1,499 number of learners)","Price calculated for 1,499 learners  (excuding vat)","Unit Price ( for scale 1,500 - 2,000 number of learners)  (excuding vat)","Price calculated for 2,000 learners  (excuding vat)","Per Unit Price( for scale 2,001 and above - number of learners)  (excuding vat)","Price calculated for 2,001 learners  (excuding vat)"]
[1]
[2]
[3]
[4]
[5]
[6]
["Sub Total (VAT Exclusive) for other items",{"$nulls":4},{"$f":"SUM(F13:F18)","v":{"v":0,"d":"R 0.00"}},{"$f":"SUM(G13:G18)","v":{"v":0,"d":"R 0.00"}},{"v":0,"d":"R 0.00"},{"v":0,"d":"R 0.00"},{"v":0,"d":"R 0.00"},{"v":0,"d":"R 0.00"},{"v":0,"d":"R 0.00"},{"v":0,"d":"R 0.00"}]
[]
["Total VAT excl",{"$nulls":4},{"$f":"F11+F19","v":{"v":0,"d":"R 0.00"}},{"$f":"G11+G19","v":{"v":0,"d":"R 0.00"}},{"v":0,"d":"R 0.00"},{"v":0,"d":"R 0.00"},{"v":0,"d":"R 0.00"},{"v":0,"d":"R 0.00"},{"v":0,"d":"R 0.00"},{"v":0,"d":"R 0.00"}]
["VAT (if VAT registered)",{"$nulls":4},{"$f":"SUM(F21*0.15)","v":{"v":0,"d":"R0.00"}},{"$f":"SUM(G21*0.15)","v":{"v":0,"d":"R0.00"}},{"v":0,"d":"R0.00"},{"v":0,"d":"R0.00"},{"v":0,"d":"R0.00"},{"v":0,"d":"R0.00"},{"v":0,"d":"R0.00"},{"v":0,"d":"R0.00"}]
["TOTAL BIDDING PRICE INCL VAT",{"$nulls":4},{"$f":"F21+F22","v":{"v":0,"d":"R0.00"}},{"$f":"G21+G22","v":{"v":0,"d":"R0.00"}},{"v":0,"d":"R0.00"},{"v":0,"d":"R0.00"},{"v":0,"d":"R0.00"},{"v":0,"d":"R0.00"},{"v":0,"d":"R0.00"},{"v":0,"d":"R0.00"}]
[]
[]
["Notes:"]
["Price Evaluation will be conducted using 2,000 learners "]
["Pricing must cover all items detailed in the Terms of Reference"]
["The pricing sheet should show VAT separately"]
["Pricing must include Value Added Tax (VAT) at the end if the bidder is registered for VAT."]
["Service provider should complete blocks in yellow. Total values in this spreadsheet are automatically calculated and filled in."]
["Service Provider to check that the totals include all items quoted and to check the overall bid price for completeness and accuracy."]
["BIDDER - Only complete cells marked in yellow"]
["Company Name:"]
[]
["Representative Name:"]
[]
["Date"]
[]
["Signature"]

{"sheet":"Total Bidding Price","index":3,"n_rows":31,"n_cols":6,"rows_kept":31,"merged":[[1,1,1,5],[2,1,4,5],[6,0,6,2],[7,1,7,2],[8,1,8,2],[9,1,9,2],[10,1,10,2],[11,1,11,2],[12,1,12,4],[13,1,13,3],[14,1,14,3],[15,1,15,3],[16,1,16,3],[18,0,18,5],[19,0,19,5],[20,0,20,5],[22,0,22,5]]}
[]
[null,"Total - Pricing Schedule for 3 Years"]
[null,"ANNEXURE A - APPOINTMENT OF A PANEL OF SERVICE PROVIDERS LOCATED IN SOUTH AFRICA TO PROVIDE QUALITY ASSURANCE AND VERIFICATION SERVICES OF PERFORMANCE INFORMATION FOR SELECTED DISCRETIONARY GRANT FUNDED PROJECTS "]
[]
[]
[{"$nulls":3},"Bid No: BS/2026/RFB557"]
["Description",{"$nulls":4},"Total Price Including VAT"]
[{"$nulls":3},{"$f":"#REF!/500","v":{"$error":"#REF!"}},{"$f":"F8/1000","v":{"v":0,"d":"R 0.00"}},{"v":0,"d":"R 0.00"}]
[{"$nulls":3},{"$f":"#REF!/500","v":{"$error":"#REF!"}},{"$f":"F9/1000","v":{"v":0,"d":"R 0.00"}},{"v":0,"d":"R 0.00"}]
[{"$nulls":3},{"$f":"#REF!/500","v":{"$error":"#REF!"}},{"$f":"F10/1000","v":{"v":0,"d":"R 0.00"}},{"v":0,"d":"R 0.00"}]
[{"$nulls":3},{"$f":"#REF!/500","v":{"$error":"#REF!"}},{"$f":"F11/1000","v":{"v":0,"d":"R 0.00"}},{"v":0,"d":"R 0.00"}]
[{"$nulls":3},{"$f":"#REF!/500","v":{"$error":"#REF!"}},{"$f":"F12/1000","v":{"v":0,"d":"R 0.00"}},{"v":0,"d":"R 0.00"}]
[{"$nulls":5},"For 2,000 learners a Year"]
[null,"TOTAL YEAR 1",{"$nulls":3},{"$f":"'Year 1 '!K23","v":{"v":0,"d":"R 0.00"}}]
[null,"TOTAL YEAR 2",{"$nulls":3},{"$f":"'Year 2'!K23","v":{"v":0,"d":"R 0.00"}}]
[null,"TOTAL YEAR 3",{"$nulls":3},{"$f":"'Year 3'!K23","v":{"v":0,"d":"R 0.00"}}]
[null,"TOTAL BIDDING PRICE INCL VAT",{"$nulls":3},{"$f":"SUM(F14:F16)","v":{"v":0,"d":"R 0.00"}}]
["Notes:"]
["Pricing must cover all items detailed in the Terms of Reference"]
["Pricing must include Value Added Tax (VAT) at the end if the bidder is registered for VAT."]
["Service provider should complete blocks in yellow. Total values in this spreadsheet are automatically calculated and filled in."]
["Service Provider to check that the totals include all items quoted and to check the overall bid price for completeness and accuracy."]
["BIDDER - Only complete cells marked in yellow"]
[]
["Company Name:",{"$nulls":3}," "]
[{"$nulls":4}," "]
["Representative Name:",{"$nulls":3}," "]
[{"$nulls":4}," "]
["Date:",{"$nulls":3}," "]
[{"$nulls":4}," "]
["Signature",{"$nulls":3}," "]